Cogmind - Beta 14 @@@ ROGUE MODE // 2025.01.18 @ 23:27:27 Player: Iry-bot Result: Self-destructed Performance ------------- Evolutions (2) 1000 Regions Visited (5) 1000 Robots Destroyed (77) 385 Value Destroyed (2267) 2267 Prototype IDs (42) 840 Alien Tech Used (0) 0 Bonus (567) 567 TOTAL SCORE: 6059 Bonus ------- High Alert Combat Kills 253 Follower Combat Kills 14 Aligned with FarCom 300 Cogmind --------- Core Integrity 209/550 Matter 224/300 Energy 160/160 System Corruption 7% Temperature Warm (102) Movement Treading (162) Location -8/Materials Parts ------- > --- POWER (1) -------- Light Nuclear Core > --- PROPULSION (4) --- Light Treads Light Treads Light Treads Armored Treads > --- UTILITY (4) ------ Heavy Armor Plating > --- WEAPON (2) ------- Heavy Assault Cannon > --- INVENTORY (5) ---- Heavy Ion Cannon Heavy Assault Cannon Heavy Assault Cannon Peak State ------------ > --- POWER ------------ Light Nuclear Core > --- PROPULSION ------- Light Treads Light Treads Armored Treads Advanced Treads > --- UTILITY ---------- Humpback Improved Utility Shielding Hacking Suite > --- WEAPON ----------- AWS/Thermal > --- INVENTORY -------- Light Deuterium Engine Light Nuclear Core Light Treads Light Treads Light Treads Light Treads Heat Sink Improved Heat Sink Heavy Armor Plating Heavy Armor Plating Heavy Armor Plating Improved Light Armor Plating Improved Shield Generator Hacking Suite System Shield Heavy Particle Gun Heavy Ion Cannon Heavy Ion Cannon Heavy Ion Cannon Heavy Ion Cannon High-powered Shotgun Heavy Assault Cannon Heavy Assault Cannon Heavy Assault Cannon Heavy Assault Cannon Datajack Great Maul [Rating: 44] Favorites ----------- Power Light Ion Engine Engine Light Ion Engine Power Core Light Nuclear Core Propulsion Light Treads Treads Light Treads Wheel Compact Wheel Utility Hacking Suite Device ECM Suite Storage Humpback Hackware Hacking Suite Protection Improved Utility Shielding Weapon AWS/Thermal Energy Gun AWS/Thermal Energy Cannon Advanced Beam Cannon Ballistic Gun Light Assault Rifle Ballistic Cannon Heavy Assault Cannon Impact Weapon Great Maul Special Melee Weapon Datajack Build | -11 -10 -10 -10 -9 -8 ------- Run | Yrd Mat Min Exi Min Mat Slots Evolved 4 | . . . . . 4 Power . | . . . . . . Propulsion 2 | . . . . . 2 Utility 2 | . . . . . 2 Weapon . | . . . . . . Parts Attached 58 | 6 10 4 3 1 34 Power 10 | 1 3 . . . 6 Engine 7 | 1 3 . . . 3 Core 3 | . . . . . 3 Reactor . | . . . . . . Propulsion 19 | 2 2 . . 1 14 Treads 17 | 2 2 . . . 13 Leg . | . . . . . . Wheel 2 | . . . . 1 1 Hover . | . . . . . . Flight . | . . . . . . Utility 11 | 1 3 . 1 . 6 Device 1 | . 1 . . . . Storage 4 | 1 1 . 1 . 1 Processor . | . . . . . . Hackware 1 | . 1 . . . . Protection 5 | . . . . . 5 Artifact . | . . . . . . Weapon 18 | 2 2 4 2 . 8 Energy Gun 3 | 1 . . 1 . 1 Energy Cannon 6 | . 2 2 . . 2 Ballistic Gun 2 | 1 . . . . 1 Ballistic Cannon 3 | . . . . . 3 Launcher . | . . . . . . Special Weapon . | . . . . . . Impact Weapon 2 | . . 1 . . 1 Slashing Weapon . | . . . . . . Piercing Weapon . | . . . . . . Special Melee Weapon 2 | . . 1 1 . . Unidentified Prototypes 1 | . 1 . . . . Parts Lost 16 | . . . . 1 15 Power 4 | . . . . . 4 Propulsion 7 | . . . . 1 6 Utility 4 | . . . . . 4 Weapon 1 | . . . . . 1 Highest Loss Streak 7 | . . . . 1 7 To Critical Strikes 2 | . . . . . 2 Average Slot Usage (%) 86 | . 93 100 95 85 79 Engine 8 | . 13 14 14 14 3 Core 3 | . . . . . 5 Treads 28 | . 27 28 28 21 29 Wheel 2 | . . . . 7 4 Storage 11 | . 14 14 14 14 9 Hackware 9 | . 2 14 14 14 8 Protection 5 | . . . . . 8 Energy Gun 6 | . 8 . 4 14 7 Energy Cannon 6 | . 10 25 10 . . Ballistic Gun 1 | . 8 . . . . Special Melee Weapon 1 | . . . 8 . . Peak Build Rating 44 | 6 14 15 26 26 44 Average Rating 27 | 4 8 14 16 25 38 On Entrance 14 | . 6 14 15 26 26 Naked Turns . | . . . . . . Heaviest Build 236 | 10 31 31 51 51 236 Greatest Support 82 | 40 40 40 40 40 82 Greatest Overweight (x) 10 | . . . 1 3 10 Average Overweight (x) 2 | . . . . 2 4 Largest Inventory Capacity 35 | 8 15 15 20 20 35 Average Capacity 26 | 7 8 15 18 20 34 Most Carried 35 | 3 8 11 15 16 35 Average Carried 20 | 2 3 9 11 15 29 Final Capacity 20 | 8 15 15 20 20 5 Final Carried 16 | 3 7 11 15 16 5 Class Distribution -------------------- 56% | Hauler-Mutant 43% | Mutant Dominant Class ---------------- Mutant | -10/Materials Mutant | -10/Mines Mutant | -10/Exiles Mutant | -9/Mines Hauler-Mutant | -8/Materials Resources | -11 -10 -10 -10 -9 -8 ----------- Run | Yrd Mat Min Exi Min Mat Matter Collected 986 | 202 159 77 . 35 513 Remotely . | . . . . . . Salvage Created 2623 | . 442 179 . 184 1818 Parts 153 | . 30 9 . 9 105 Haulers Intercepted 1 | . . . . . 1 Recyclers Shooed . | . . . . . . Parts Field Recycled . | . . . . . . Retrieved Matter . | . . . . . . Parts Self-Destructed . | . . . . . . Prevented . | . . . . . . Kills | -11 -10 -10 -10 -9 -8 ------- Run | Yrd Mat Min Exi Min Mat Combat Hostiles Destroyed 63 | . 11 6 . 4 42 Melee 2 | . . 2 . . . Guns 47 | . 9 . . 4 34 Cannons 13 | . 2 3 . . 8 Classes Destroyed 15 | . 6 3 . . 6 Worker 2 | . 1 . . . 1 Builder 4 | . . 1 . . 3 Tunneler 1 | . . 1 . . . Hauler 1 | . . . . . 1 Recycler 1 | . 1 . . . . Operator 2 | . 2 . . . . Watcher 6 | . 2 . . . 4 Swarmer 18 | . 8 1 . . 9 Grunt 26 | . 3 2 . 4 17 Brawler 2 | . . . . . 2 Duelist 1 | . . . . . 1 Protector 1 | . . . . . 1 Sentry 8 | . . . . . 8 Specialist 4 | . . . . . 4 Assembled 3 | . . 3 . . . Best Kill Streak 6 | . 6 3 . 4 6 Combat Bots Only 6 | . 6 2 . 4 6 Max Kills in Single Turn 1 | . 1 1 . 1 1 Gunslinging . | . . . . . . Exploded . | . . . . . . Melee 1 | . . 1 . . . Uniques/NPCs Destroyed . | . . . . . . Combat | -11 -10 -10 -10 -9 -8 -------- Run | Yrd Mat Min Exi Min Mat Hostile Shots Fired 425 | . 62 14 . 8 341 Missed 122 | . 15 3 . 2 102 Damage Taken 4353 | . 438 122 . 100 3693 Core 423 | . 21 28 . 33 341 Absorbed by Shields . | . . . . . . Redirected to Shielding 103 | . . . . . 103 Regen/Repaired (Parts) 54 | . 54 . . . . Core Remaining (%) 83 | 100 . . . 67 . Volleys Fired 98 | . 48 6 . . 44 Largest 2 | . 2 2 . . 2 Hottest 136 | . 136 136 . . 130 Shots Fired 286 | . 94 12 . 14 166 Gun 213 | . 74 . . 14 125 Cannon 73 | . 20 12 . . 41 Launcher . | . . . . . . Special . | . . . . . . Kinetic 77 | . 38 . . . 39 Thermal 209 | . 56 12 . 14 127 Explosive . | . . . . . . Electromagnetic . | . . . . . . Robot Hit Streak 30 | . 4 4 . 18 30 Robot Miss Streak 6 | . 6 1 . . 3 Penetration Max . | . . . . . . Secondary Targets 1 | . 1 . . . . Max Gunslinging Chain 1 | . 1 . . . . Autonomous 124 | . . . . 14 110 Shots Hit Robots 214 | . 43 13 9 14 135 Core Hits 94 | . 22 6 . 5 61 Critical Kills 1 | . 1 . . . . Critical Parts Destroyed 2 | . . 2 . . . Critical Strikes 4 | . 1 2 . . 1 Destroy 1 | . 1 . . . . Blast 1 | . . . . . 1 Smash 2 | . . 2 . . . Melee Attacks 43 | . . 28 9 . 6 Impact 31 | . . 25 . . 6 Slashing . | . . . . . . Piercing . | . . . . . . Sneak Attacks 9 | . . 1 8 . . Combat Hostiles . | . . . . . . Follow-up Attacks . | . . . . . . Damage Inflicted 5891 | . 562 553 . 445 4331 Guns 3703 | . 335 . . 422 2946 Cannons 1749 | . 227 175 . . 1347 Explosions . | . . . . . . Melee 378 | . . 378 . . . Ramming 61 | . . . . 23 38 Kinetic 1391 | . 118 . . . 1273 Thermal 4061 | . 444 175 . 422 3020 Explosive . | . . . . . . Electromagnetic . | . . . . . . Impact 378 | . . 378 . . . Slashing . | . . . . . . Piercing . | . . . . . . Highest Corruption 7 | . . . . . 7 Average Corruption 6 | . . . . . 6 Corruption Purged . | . . . . . . Corruption Blocked . | . . . . . . Overload Shots . | . . . . . . Overflow Damage 261 | . . 180 . 3 78 Projectiles 78 | . . . . . 78 Explosions . | . . . . . . Melee 183 | . . 180 . 3 . Knockbacks 10 | . . . . 1 9 Impact 1 | . . . . 1 . Kinetic 8 | . . . . . 8 Secondary 1 | . . . . . 1 Self-Inflicted Damage 11 | . . . . 11 . Shots . | . . . . . . Rammed 1 | . . . . 1 . Targets Rammed 4 | . . . . 1 3 Kicked . | . . . . . . Crushed 3 | . . . . . 3 Highest Temperature 479 | . 416 150 . . 479 Average Temperature 124 | . 105 48 . . 158 Received Heat Transfer 1350 | . 120 78 . 45 1107 Effects 9 | . 2 . . . 7 Shutdowns 3 | . . . . . 3 Energy Bleed 3 | . 1 . . . 2 Interference 1 | . . . . . 1 Matter Decay 1 | . . . . . 1 Short Circuit 1 | . 1 . . . . Siege Activations . | . . . . . . Robots Corrupted 1 | . . 1 . . . Combat Hostiles 1 | . . 1 . . . Parts Fried 4 | . . 3 . . 1 Impact Corruptions 7 | . . 5 . 1 1 Robots Melted . | . . . . . . Combat Hostiles . | . . . . . . Parts Melted 10 | . . . . 1 9 Heat Transferred 5542 | . 907 296 . 518 3821 Parts Sabotaged . | . . . . . . Parts Stolen . | . . . . . . Parts Stripped . | . . . . . . Power Chain Reactions . | . . . . . . Alert | -11 -10 -10 -10 -9 -8 ------- Run | Yrd Mat Min Exi Min Mat Peak Influence 744 | . 327 134 . 100 744 Initial 84 | . . 84 . . 39 Average 259 | . 192 54 . 37 339 Maximum Alert Level 3 | . 1 . . . 3 Low Security (%) 42 | 100 44 100 . 100 24 Level 1 32 | . 55 . . . 37 Level 2 23 | . . . . . 35 Level 3 1 | . . . . . 2 Level 4 . | . . . . . . Level 5 . | . . . . . . High Security . | . . . . . . Max Security . | . . . . . . Squads Dispatched 12 | . 2 1 . 1 8 Investigation 4 | . 1 1 . . 2 Extermination . | . . . . . . Reinforcement 5 | . 1 . . . 4 Assault 3 | . . . . 1 2 Garrison . | . . . . . . Intercept . | . . . . . . Searches Triggered . | . . . . . . Construction Impeded . | . . . . . . Haulers Reinforced . | . . . . . . Active Scanning Responses . | . . . . . . Cargo Convoy Interrupts . | . . . . . . Stealth | -11 -10 -10 -10 -9 -8 --------- Run | Yrd Mat Min Exi Min Mat Distress Signals 4 | . 1 . . . 3 Communications Jammed . | . . . . . . Distress Signals . | . . . . . . Times Spotted 106 | . 24 7 . 5 70 Peak Tracking Total 9 | . 7 3 . 4 9 Tactical Retreats 13 | . 3 2 . . 8 Traps | -11 -10 -10 -10 -9 -8 ------- Run | Yrd Mat Min Exi Min Mat Traps Triggered 4 | . 2 . . . 2 Indirectly . | . . . . . . Trap Hack Attempts . | . . . . . . Triggered . | . . . . . . Disarmed . | . . . . . . Reprogrammed . | . . . . . . Reused . | . . . . . . Traps Extracted . | . . . . . . Installed . | . . . . . . Triggered . | . . . . . . Machines | -11 -10 -10 -10 -9 -8 ---------- Run | Yrd Mat Min Exi Min Mat Machines Disabled 2 | . 1 . . . 1 Max in Single Turn 1 | . 1 . . . 1 Machines Repaired . | . . . . . . Machines Dismantled . | . . . . . . Machines Sabotaged . | . . . . . . Overloaded Fab Kills . | . . . . . . Hacking | -11 -10 -10 -10 -9 -8 --------- Run | Yrd Mat Min Exi Min Mat Machines Accessed 13 | . 4 1 2 . 6 Terminals 9 | . 3 . . . 6 Fabricators . | . . . . . . Repair Stations 1 | . 1 . . . . Recycling Units . | . . . . . . Scanalyzers . | . . . . . . Garrison Access . | . . . . . . Total Hacks 45 | . 14 1 2 . 28 Successful 26 | . 10 1 2 . 13 Failed 19 | . 4 . . . 15 Catastrophic 2 | . . . . . 2 Database Lockouts . | . . . . . . Manual 34 | . 11 . 1 . 22 Terminals 40 | . 12 . . . 28 Fabricators . | . . . . . . Repair Stations 2 | . 2 . . . . Recycling Units . | . . . . . . Scanalyzers . | . . . . . . Garrison Access . | . . . . . . Terminal Hacks 17 | . 5 1 2 . 9 Record 1 | . . . 1 . . Robot Analysis 5 | . 2 . . . 3 Prototype ID Bank 2 | . 1 . . . 1 Open Door 1 | . . 1 . . . Branch Access Points 1 | . 1 . . . . Terminal Index 2 | . 1 . . . 1 Alert Level 3 | . . . . . 3 Unreport Threat 1 | . . . . . 1 Derelict Proto ID Bank 1 | . . . 1 . . Fabricator Hacks . | . . . . . . Repair Station Hacks 2 | . 2 . . . . Scan Component 1 | . 1 . . . . Repair 1 | . 1 . . . . Recycling Unit Hacks . | . . . . . . Scanalyzer . | . . . . . . Garrison Access Hacks . | . . . . . . Unauthorized Hacks 7 | . 3 . . . 4 Terminals 7 | . 3 . . . 4 Botnet 7 | . 3 . . . 4 Fabricators . | . . . . . . Repair Stations . | . . . . . . Recycling Units . | . . . . . . Scanalyzers . | . . . . . . Garrison Access . | . . . . . . Data Cores Recovered 1 | . 1 . . . . Used . | . . . . . . Hacking Detections 10 | . 4 . . . 6 Full Trace Events . | . . . . . . Feedback Events . | . . . . . . Feedback Blocked . | . . . . . . Robot Schematics Acquired . | . . . . . . Robots Built . | . . . . . . Authchips . | . . . . . . Time . | . . . . . . Total Robot Build Rating . | . . . . . . Part Schematics Acquired . | . . . . . . Parts Built . | . . . . . . Authchips . | . . . . . . Time . | . . . . . . Total Part Build Rating . | . . . . . . Parts Repaired 1 | . 1 . . . . Time 26 | . 26 . . . . Parts Recycled . | . . . . . . Recycled Matter . | . . . . . . Retrieved Matter . | . . . . . . Retrieved Components . | . . . . . . Parts Scanalyzed . | . . . . . . Part Schematics Acquired . | . . . . . . Parts Damaged . | . . . . . . Bothacking | -11 -10 -10 -10 -9 -8 ------------ Run | Yrd Mat Min Exi Min Mat Used RIF Installer . | . . . . . . Robots Hacked 7 | . . . 7 . . Non-combat 3 | . . . 3 . . Combat 4 | . . . 4 . . Robot Hacks Applied 7 | . . . 7 . . parse_system 7 | . . . 7 . . Relay Couplers Released . | . . . . . . Fabnet Peak Effective % . | . . . . . . Robots Rewired . | . . . . . . Allies Hacked . | . . . . . . Hacks Repelled . | . . . . . . Allies | -11 -10 -10 -10 -9 -8 -------- Run | Yrd Mat Min Exi Min Mat Total Allies 1 | . . . . 1 . Largest Group 1 | . . . . 1 1 Highest-Rated Group 31 | . . . . 31 31 Highest-Rated Ally 31 | . . . . 31 31 Total Orders . | . . . . . . Ally Attacks 11 | . . . . 6 5 Total Damage 169 | . . . . 105 64 Kills 3 | . . . . 1 2 Allies Corrupted . | . . . . . . Allies Melted . | . . . . . . Intel | -11 -10 -10 -10 -9 -8 ------- Run | Yrd Mat Min Exi Min Mat Robot Analysis Total 5 | . 2 . . . 3 Derelict Logs Recovered 2 | . . 1 . 1 . Drone Launches . | . . . . . . Drone Recoveries . | . . . . . . Exploration | -11 -10 -10 -10 -9 -8 ------------- Run | Yrd Mat Min Exi Min Mat Turns Passed 6095 | 78 621 890 972 119 3415 Spaces Moved 2346 | 45 259 488 438 60 1056 Core 4 | 4 . . . . . Treads 1946 | 41 259 488 438 27 693 Legs . | . . . . . . Wheels 396 | . . . . 33 363 Hover . | . . . . . . Flight . | . . . . . . Fastest Speed 50 | 50 160 160 160 145 210 Average Speed 226 | 150 160 160 217 187 282 Slowest Speed 960 | 160 160 160 240 240 960 Overloaded Moves . | . . . . . . Propulsion Burnouts . | . . . . . . Robots Hopped . | . . . . . . Cave-ins Triggered . | . . . . . . Exploration Rate (%) 52 | 3 49 86 78 20 80 Regions Visited 5 Branch Regions 3 Pre-discovered Areas 4 | . . 2 1 1 . Known Exits Taken 1 | . 1 . . . . Unknown Exits Taken 4 | 1 . 1 1 1 . Scrap Searched 1 | . . 1 . . . Spaces Dug 6 | . . . . . 6 Terrain Destroyed 37 | . . . . . 37 Melee 6 | . . . . . 6 Projectile 31 | . . . . . 31 AOE . | . . . . . . Terrain Rammed . | . . . . . . Walls Destroyed . | . . . . . . Machines Disabled . | . . . . . . Actions | -11 -10 -10 -10 -9 -8 --------- Run | Yrd Mat Min Exi Min Mat Total 2891 | 53 378 532 453 66 1409 Wait 258 | . 51 2 . 3 202 Move 2341 | 44 258 487 437 59 1056 Hop . | . . . . . . Pick Up 51 | 3 5 4 1 2 36 Fast Attach 20 | 6 8 . 1 . 5 Attach 24 | . 1 . . 1 22 Detach 8 | . . . 2 . 6 Swap 14 | . 1 4 2 . 7 Drop 30 | . 6 1 1 . 22 Fire 98 | . 48 6 . . 44 Melee 43 | . . 28 9 . 6 Ram 1 | . . . . 1 . Kick . | . . . . . . Crush 3 | . . . . . 3 Escape Stasis . | . . . . . . Rewire . | . . . . . . Trap . | . . . . . . Miscellaneous . | . . . . . . Route ------- -11/Scrapyard -10/Materials (discovered 2 exits: [*Mat] / *Min) -10/Mines (discovered 3 exits: [*Mat x2] / *Exi) -10/Exiles -9/Mines -8/Materials (discovered 2 exits: [*Fac x2]) History --------- Turn | Location | Event 10 | -11/Scrapyard | Discovered new exit (range 16) 79 | -11/Scrapyard | Entered Materials 247 | -10/Materials | Repaired Lgt. Treads 306 | -10/Materials | Build established: Mutant 544 | -10/Materials | Identified exit to Mines 571 | -10/Materials | Discovered new exit (range 16) 700 | -10/Materials | Entered Mines 736 | -10/Mines | Met a Derelict bent on vengeance 782 | -10/Mines | Discovered new exit (range 10) 865 | -10/Mines | Learned location of Zion (-6) 927 | -10/Mines | Found a hidden stash of uninstalled traps 973 | -10/Mines | Met a Derelict shopkeep closing up shop 1091 | -10/Mines | Discovered new exit (range 5) 1310 | -10/Mines | Learned location of Storage (-7) 1366 | -10/Mines | Excavation squad dispatched 1366 | -10/Mines | A large section of the Mines collapsed 1582 | -10/Mines | Deemed a non-threat by the Exiles lab entrance 1582 | -10/Mines | Discovered new exit (range 5) 1590 | -10/Mines | Entered Exiles 1629 | -10/Exiles | Met 8R-AWN 1680 | -10/Exiles | Met EX-HEX 1836 | -10/Exiles | Met EX-DEC 1931 | -10/Exiles | Visited The Gauntlet 2108 | -10/Exiles | Met EX-BIN 2206 | -10/Exiles | Aligned with FarCom system 2208 | -10/Exiles | Given EX-Vault access code 2263 | -10/Exiles | Opened EX-Vault 2277 | -10/Exiles | Found AWS/Thermal 2326 | -10/Exiles | Warned to stay clear of 0b10 Research branches 2536 | -10/Exiles | Discovered new exit (range 14) 2562 | -10/Exiles | Left Exiles lab with AWS/Thermal 2562 | -10/Exiles | Entered Mines 2575 | -9/Mines | Met a Derelict testing a Signal Generator 2671 | -9/Mines | Discovered new exit (range 7) 2681 | -9/Mines | Entered Materials 2681 | -8/Materials | Accompanied by 1 ally 2681 | -8/Materials | Evolved 4 slots: Propulsion x2, Utility x2 2970 | -8/Materials | Build established: Hauler-Mutant 4034 | -8/Materials | Discovered new exit (range 15) 4692 | -8/Materials | Discovered new exit (range 12) 5081 | -8/Materials | First assault squad dispatched 5161 | -8/Materials | AWS/Thermal suddenly broke down 5967 | -8/Materials | Lost 3 parts (1p2n) 6032 | -8/Materials | Core integrity fell below 50% 6096 | -8/Materials | Self-destructed Last Messages --------------- 06077_ Lgt. Treads destroyed. 06078_ X-57 Shotgunner knocked back. 06079_ X-57 Shotgunner heat damages Shotgun. 06079_ U-05 Engineer builds a Wall. 06081_ Critical hit (Smash). 06081_ Lgt. Treads destroyed. 06081_ Hvy. Armor Plating destroyed. 06081_ System corrupted by crushing effect (+2). 06081_ System corrupted by crushing effect (+3). 06084_ X-57 Shotgunner heat damages VSS Leg. 06084_ Lgt. Angular Momentum Engine destroyed. 06084_ System corrupted by crushing effect (+2). 06088_ Hvy. Assault Cannon destroyed. 06088_ X-57 Shotgunner overheating. 06093_ Slug penetrates B-36 Bruiser. 06094_ X-57 Shotgunner heat short circuits VSS Leg. 06094_ X-57 Shotgunner overheating. 06095_ Humpback destroyed. 06095_ X-57 Shotgunner overheating. Map ----- +----------------------------------------------------+ | # #????????## %# """ #############?????????? | | # #??########%% # """ #???###???????????????? | | # #??# # """ #?????????????????????? | | + #??# + #?????????????????????? | | # #??# # / #?????????????????????? | | ##+##??# #####+########?????????????????????? | | # ??# #[ ! #?????????????????????? | | # ## # """ " ##????????????????????? | | ##%# ## # """ T "#????????????????????? | | ?### ## + = """ " ##????????????????????? | | ???# ## # ##????????????????????? | | ???# ## ###################????????????????? | | ???######## #? #???# [[#????????????????? | | #??# """ # # ! #???# !##????????????????? | | #??# "T" # # """#???# " #?????????????????? | | #??# + + R"#???# """ #?????????????????? | | #??#=! # # """#???# "" #?????????????????? | | #??#! ] # # [ #???# """ #?????????????????? | | #??#[%! # #?########## "" #?????????????????? | | #??#[###### #?# ## # """ #?????????????????? | | #??###????# #?# ## # """ #?????????????????? | | ???###????# #?# ## + """ #?????????????????? | | ###########% #?# ##/ # " #?????????????????? | | %% #?# ## #= #?????????????????? | | ! #?# ### #########????????????????? | | ###+###! #@%%!]]]#????????????????? | | ###############![ #%!%xb!!! !#????????????????? | | ??????????????# "T"=/ gHg%x!! #????????????????? | | ??????????????# #m g#]/% #????????????????? | | ??????????????#! !=!#%Yg#]### ###????????????????? | | ??????????????####### = ###??##??????????????????? | | ????????????#######" % ####### #???????????? | | ????????????# % %% % %% #???????????? | | ############# #???????????? | | [=%!%=[[[%% #???????????? | | %################## ####### "#??????????? | | =#???????????????####/####???????#####??????????? | | #?????????????????? ???????????????????????? | | #?????????????????? !! ???????????????????????? | | ########??????????? !! ??????????????????????? | | # ! #??????????? =? ??????????????????????? | | # #?????????? ? ???????????????????????? | | + """#?????????? ?????????????????????????? | | # """#????????? ??????????????????????????? | | # """#????????? ???????????????????????????? | | #? #???????????#+???????????????????????????? | | #?######????????????????????????????????????????? | | #???????????????????????????????????????????????? | | #???????????????????????????????????????????????? | | #???????????????????????????????????????????????? | +----------------------------------------------------+ Best States ------------- Heat Dissipation 31 Energy Generation 18 Energy Capacity 250 Matter Stores 300 Matter Capacity 300 Sight Range 16 Terrain Scan Density 10 ECM Strength 1 Armor Coverage 600 Utility Shielding 66 Evasion (%) 40 Recoil Reduction 4 Offensive Hacking 10 Item Schematics ----------------- None Robot Schematics ------------------ None Fabricated ------------ Nothing Alien Tech Used ----------------- None Achievements -------------- None Challenges ------------ None Game ------ Seed CombatReflectiveMachine Manual? 0 Play Time 00:43:48 Cumulative 33.6 hours Start 2025.01.18 @ 22:44:56 End 2025.01.18 @ 23:27:27 Sessions 1 Manual Loads 0 Difficulty Rogue Special Mode None Game No. 36 Rogue 36 Adventurer 0 Explorer 0 Win Type - Total 0 Types 0/0/0/0/0/0/0/0/0 Lore% 30 Gallery% 28 Achievement% 25 Wizard Run 0 Options --------- Layout 1 ASCII 0 Keyboard 0 Movement Mouse Keybinds 0 Fullscreen 2 Font 24/Smallcaps Map View 50x35 Zoom Use 0% Tactical HUD 1 Map Filters NONE Filters NONE Steam 1 RUN: f652f40d-2540-4278-ba77-0a852daa2440